[Event "Titled Tuesday Blitz October 25 Late 2022"]
[White "Li, Ben"]
[Black "Sztokbant, Bernardo Vainzoff"]
[WhiteFideId "2089980"]
[BlackFideId "2115956"]
[WhiteElo "2267"]
[BlackElo "2171"]
[Result "1-0"]
[Round "06"]
[TimeControl "180+1"]
[Date "2022.10.26"]
[WhiteClock "0:00:59"]
[BlackClock "0:00:17"]

1. d4 {[%clk 0:03:00]}  Nf6 {[%clk 0:02:56]} 2. c4 {[%clk 0:03:00]}  e6 {[%clk 0:02:55]} 3. Nf3 {[%clk 0:03:00]}  Bb4+ {[%clk 0:02:56]} 4. Bd2 {[%clk 0:03:00]}  c5 {[%clk 0:02:56]} 5. Bxb4 {[%clk 0:03:00]}  cxb4 {[%clk 0:02:56]} 6. e3 {[%clk 0:03:00]}  d6 {[%clk 0:02:54]} 7. Bd3 {[%clk 0:03:01]}  Nc6 {[%clk 0:02:54]} 8. O-O {[%clk 0:03:01]}  Qe7 {[%clk 0:02:53]} 9. a3 {[%clk 0:03:01]}  e5 {[%clk 0:02:50]} 10. Be2 {[%clk 0:02:40]}  bxa3 {[%clk 0:02:49]} 11. bxa3 {[%clk 0:02:40]}  O-O {[%clk 0:02:49]} 12. Nc3 {[%clk 0:02:40]}  Bf5 {[%clk 0:02:42]} 13. h3 {[%clk 0:02:39]}  e4 {[%clk 0:02:28]} 14. Nd2 {[%clk 0:02:39]}  Rfe8 {[%clk 0:02:23]} 15. Re1 {[%clk 0:02:36]}  Qd7 {[%clk 0:02:17]} 16. Bf1 {[%clk 0:02:30]}  h5 {[%clk 0:02:14]} 17. Rb1 {[%clk 0:02:30]}  Ne7 {[%clk 0:02:13]} 18. Nb3 {[%clk 0:02:25]}  Ng6 {[%clk 0:02:11]} 19. c5 {[%clk 0:02:25]}  Nh4 {[%clk 0:02:05]} 20. Ne2 {[%clk 0:01:47]}  Nd5 {[%clk 0:01:28]} 21. Ng3 {[%clk 0:01:28]}  Nc3 {[%clk 0:01:20]} 22. Qxh5 {[%clk 0:01:26]}  Nxb1 {[%clk 0:01:11]} 23. Rxb1 {[%clk 0:01:26]}  Bxh3 {[%clk 0:00:50]} 24. Qxh4 {[%clk 0:01:24]}  Be6 {[%clk 0:00:47]} 25. cxd6 {[%clk 0:01:24]}  Qxd6 {[%clk 0:00:46]} 26. Nc5 {[%clk 0:01:24]}  Bd5 {[%clk 0:00:46]} 27. Nf5 {[%clk 0:01:21]}  Qf6 {[%clk 0:00:43]} 28. Qxf6 {[%clk 0:01:15]}  gxf6 {[%clk 0:00:44]} 29. Bb5 {[%clk 0:01:15]}  Red8 {[%clk 0:00:36]} 30. Nd7 {[%clk 0:01:11]}  Kh7 {[%clk 0:00:23]} 31. Nxf6+ {[%clk 0:01:09]}  Kg6 {[%clk 0:00:23]} 32. Nxd5 {[%clk 0:01:10]}  Kxf5 {[%clk 0:00:21]} 33. Nf4 {[%clk 0:01:09]}  Rac8 {[%clk 0:00:20]} 34. Be2 {[%clk 0:01:01]}  b6 {[%clk 0:00:19]} 35. g4+ {[%clk 0:00:59]}  Kg5 {[%clk 0:00:18]} 36. Kg2 {[%clk 0:01:00]}  Rxd4 {[%clk 0:00:18]} 37. Nh3+ {[%clk 0:00:58]}  Kh4 {[%clk 0:00:17]} 38. exd4 {[%clk 0:00:59]}  Rc3 {[%clk 0:00:17]} 39. Rh1 {[%clk 0:00:59]} 1-0


[Site "https://www.chess.com"]

[Event "Titled Tuesday Blitz October 25 Late 2022"]
[White "Liu, Kelsey"]
[Black "Bilan, Danila"]
[WhiteFideId "30944481"]
[BlackFideId "24161918"]
[WhiteElo "2347"]
[BlackElo "2203"]
[Result "0-1"]
[Round "06"]
[TimeControl "180+1"]
[Date "2022.10.26"]
[WhiteClock "0:00:04"]
[BlackClock "0:00:29"]

1. e4 {[%clk 0:02:57]}  c6 {[%clk 0:02:56]} 2. d3 {[%clk 0:02:57]}  d5 {[%clk 0:02:54]} 3. Nd2 {[%clk 0:02:52]}  e5 {[%clk 0:02:54]} 4. Ngf3 {[%clk 0:02:49]}  Bd6 {[%clk 0:02:54]} 5. g3 {[%clk 0:02:50]}  Nf6 {[%clk 0:02:53]} 6. Bg2 {[%clk 0:02:50]}  O-O {[%clk 0:02:51]} 7. O-O {[%clk 0:02:50]}  Bg4 {[%clk 0:02:52]} 8. Re1 {[%clk 0:02:49]}  Nbd7 {[%clk 0:02:49]} 9. h3 {[%clk 0:02:49]}  Bh5 {[%clk 0:02:48]} 10. g4 {[%clk 0:02:47]}  Bg6 {[%clk 0:02:48]} 11. Nf1 {[%clk 0:02:43]}  dxe4 {[%clk 0:02:40]} 12. dxe4 {[%clk 0:02:43]}  Bc5 {[%clk 0:02:41]} 13. Ng3 {[%clk 0:02:42]}  Qb6 {[%clk 0:02:35]} 14. Qe2 {[%clk 0:02:34]}  Rfe8 {[%clk 0:02:32]} 15. Nh4 {[%clk 0:02:21]}  Rad8 {[%clk 0:02:29]} 16. Nxg6 {[%clk 0:01:55]}  hxg6 {[%clk 0:02:27]} 17. Bg5 {[%clk 0:01:52]}  Nf8 {[%clk 0:02:21]} 18. c3 {[%clk 0:01:51]}  Ne6 {[%clk 0:02:12]} 19. Bc1 {[%clk 0:01:14]}  a5 {[%clk 0:02:02]} 20. a3 {[%clk 0:01:10]}  a4 {[%clk 0:01:56]} 21. g5 {[%clk 0:01:00]}  Nh7 {[%clk 0:01:42]} 22. h4 {[%clk 0:00:55]}  Rd7 {[%clk 0:01:41]} 23. Be3 {[%clk 0:00:52]}  Red8 {[%clk 0:01:37]} 24. Nf1 {[%clk 0:00:48]}  Nhf8 {[%clk 0:01:27]} 25. Bh3 {[%clk 0:00:45]}  Bxe3 {[%clk 0:01:21]} 26. fxe3 {[%clk 0:00:30]}  Nf4 {[%clk 0:01:20]} 27. Qf3 {[%clk 0:00:25]}  Nxh3+ {[%clk 0:01:18]} 28. Qxh3 {[%clk 0:00:26]}  Qxb2 {[%clk 0:01:17]} 29. Rec1 {[%clk 0:00:12]}  Rd3 {[%clk 0:01:07]} 30. Qf3 {[%clk 0:00:12]}  b5 {[%clk 0:00:59]} 31. c4 {[%clk 0:00:11]}  Rxa3 {[%clk 0:00:54]} 32. Rab1 {[%clk 0:00:09]}  Qa2 {[%clk 0:00:49]} 33. cxb5 {[%clk 0:00:07]}  cxb5 {[%clk 0:00:49]} 34. Rxb5 {[%clk 0:00:06]}  Qe6 {[%clk 0:00:45]} 35. Rb7 {[%clk 0:00:05]}  Rad3 {[%clk 0:00:39]} 36. Rcc7 {[%clk 0:00:05]}  R3d7 {[%clk 0:00:36]} 37. Qe2 {[%clk 0:00:03]}  Rxc7 {[%clk 0:00:32]} 38. Rxc7 {[%clk 0:00:04]}  Ra8 {[%clk 0:00:29]} 0-1


[Site "https://www.chess.com"]

[Event "Titled Tuesday Blitz October 25 Late 2022"]
[White "Ljukin, Sergei"]
[Black "Ali Abdullahi, Farah"]
[WhiteFideId "14102200"]
[BlackFideId "16100212"]
[WhiteElo "2312"]
[BlackElo "2216"]
[Result "0-1"]
[Round "06"]
[TimeControl "180+1"]
[Date "2022.10.26"]
[WhiteClock "0:00:13"]
[BlackClock "0:00:40"]

1. e4 {[%clk 0:03:00]}  e6 {[%clk 0:02:59]} 2. d4 {[%clk 0:03:00]}  d5 {[%clk 0:02:59]} 3. Nc3 {[%clk 0:03:00]}  Nf6 {[%clk 0:02:58]} 4. Bg5 {[%clk 0:03:00]}  dxe4 {[%clk 0:02:58]} 5. Nxe4 {[%clk 0:03:00]}  Be7 {[%clk 0:02:58]} 6. Bxf6 {[%clk 0:03:00]}  gxf6 {[%clk 0:02:58]} 7. Nf3 {[%clk 0:03:00]}  a6 {[%clk 0:02:56]} 8. Qe2 {[%clk 0:02:57]}  f5 {[%clk 0:02:50]} 9. Nc3 {[%clk 0:02:55]}  b5 {[%clk 0:02:36]} 10. O-O-O {[%clk 0:02:54]}  b4 {[%clk 0:02:36]} 11. Na4 {[%clk 0:02:52]}  Bd7 {[%clk 0:02:32]} 12. Nc5 {[%clk 0:02:49]}  Bb5 {[%clk 0:02:32]} 13. Qe3 {[%clk 0:02:36]}  Nd7 {[%clk 0:02:16]} 14. Nxd7 {[%clk 0:02:32]}  Qxd7 {[%clk 0:02:14]} 15. d5 {[%clk 0:02:19]}  O-O {[%clk 0:02:09]} 16. dxe6 {[%clk 0:02:14]}  Qxe6 {[%clk 0:02:09]} 17. Kb1 {[%clk 0:01:58]}  Bf6 {[%clk 0:02:06]} 18. Nd4 {[%clk 0:01:45]}  Qd5 {[%clk 0:01:48]} 19. Qf3 {[%clk 0:00:36]}  Rfd8 {[%clk 0:01:31]} 20. Qxd5 {[%clk 0:00:35]}  Rxd5 {[%clk 0:01:31]} 21. Bxb5 {[%clk 0:00:35]}  axb5 {[%clk 0:01:29]} 22. Nb3 {[%clk 0:00:35]}  Re5 {[%clk 0:01:12]} 23. Rhe1 {[%clk 0:00:30]}  Rae8 {[%clk 0:01:09]} 24. Rxe5 {[%clk 0:00:30]}  Rxe5 {[%clk 0:01:10]} 25. g3 {[%clk 0:00:27]}  Re2 {[%clk 0:01:07]} 26. Rf1 {[%clk 0:00:23]}  Be7 {[%clk 0:00:50]} 27. Kc1 {[%clk 0:00:21]}  c5 {[%clk 0:00:49]} 28. Kd1 {[%clk 0:00:22]}  Re6 {[%clk 0:00:44]} 29. Re1 {[%clk 0:00:21]}  Rd6+ {[%clk 0:00:44]} 30. Kc1 {[%clk 0:00:20]}  Rd7 {[%clk 0:00:42]} 31. Re5 {[%clk 0:00:17]}  c4 {[%clk 0:00:41]} 32. Nd2 {[%clk 0:00:14]}  c3 {[%clk 0:00:42]} 33. bxc3 {[%clk 0:00:13]}  bxc3 {[%clk 0:00:42]} 34. Nb3 {[%clk 0:00:14]}  Ba3+ {[%clk 0:00:41]} 35. Kb1 {[%clk 0:00:13]}  Rd1+ {[%clk 0:00:40]} 0-1


[Site "https://www.chess.com"]

[Event "Titled Tuesday Blitz October 25 Late 2022"]
[White "Lorenzo De La Riva, Lazaro"]
[Black "Omariev, Maksim"]
[WhiteFideId "2268809"]
[BlackFideId "4193423"]
[WhiteElo "2325"]
[BlackElo "2417"]
[Result "1-0"]
[Round "06"]
[TimeControl "180+1"]
[Date "2022.10.26"]
[WhiteClock "0:00:33"]
[BlackClock "0:00:44"]

1. d4 {[%clk 0:03:00]}  d5 {[%clk 0:02:56]} 2. Nf3 {[%clk 0:02:53]}  Nf6 {[%clk 0:02:56]} 3. g3 {[%clk 0:02:53]}  Bf5 {[%clk 0:02:54]} 4. Bg2 {[%clk 0:02:52]}  e6 {[%clk 0:02:54]} 5. O-O {[%clk 0:02:51]}  Be7 {[%clk 0:02:53]} 6. b3 {[%clk 0:02:50]}  h6 {[%clk 0:02:53]} 7. Bb2 {[%clk 0:02:50]}  O-O {[%clk 0:02:53]} 8. c4 {[%clk 0:02:31]}  c6 {[%clk 0:02:53]} 9. Nc3 {[%clk 0:02:30]}  Nbd7 {[%clk 0:02:52]} 10. Nd2 {[%clk 0:02:27]}  Nb6 {[%clk 0:02:29]} 11. c5 {[%clk 0:01:52]}  Nbd7 {[%clk 0:02:28]} 12. f4 {[%clk 0:01:50]}  Ng4 {[%clk 0:02:24]} 13. Rf3 {[%clk 0:01:45]}  Nxc5 {[%clk 0:01:56]} 14. h3 {[%clk 0:01:33]}  Be4 {[%clk 0:01:17]} 15. hxg4 {[%clk 0:01:30]}  Bxf3 {[%clk 0:01:17]} 16. Nxf3 {[%clk 0:01:28]}  Ne4 {[%clk 0:01:16]} 17. Nxe4 {[%clk 0:01:27]}  dxe4 {[%clk 0:01:16]} 18. Ne5 {[%clk 0:01:27]}  f5 {[%clk 0:01:15]} 19. e3 {[%clk 0:01:25]}  Bf6 {[%clk 0:01:14]} 20. Qc2 {[%clk 0:01:19]}  Bxe5 {[%clk 0:01:13]} 21. dxe5 {[%clk 0:01:10]}  Qa5 {[%clk 0:01:12]} 22. gxf5 {[%clk 0:01:09]}  exf5 {[%clk 0:01:13]} 23. g4 {[%clk 0:01:07]}  g6 {[%clk 0:01:04]} 24. gxf5 {[%clk 0:01:06]}  gxf5 {[%clk 0:01:05]} 25. Kh2 {[%clk 0:01:03]}  Rad8 {[%clk 0:01:03]} 26. Qc4+ {[%clk 0:00:50]}  Kh7 {[%clk 0:01:02]} 27. Bc3 {[%clk 0:00:46]}  Qc7 {[%clk 0:00:54]} 28. Bh3 {[%clk 0:00:43]}  Qe7 {[%clk 0:00:53]} 29. Rg1 {[%clk 0:00:41]}  Qh4 {[%clk 0:00:51]} 30. Qe6 {[%clk 0:00:34]}  Rde8 {[%clk 0:00:44]} 31. Qg6+ {[%clk 0:00:33]} 1-0


[Site "https://www.chess.com"]

[Event "Titled Tuesday Blitz October 25 Late 2022"]
[White "Melikhov, Evgeny V."]
[Black "Curtis, John"]
[WhiteFideId "4122046"]
[BlackFideId "3200256"]
[WhiteElo "2169"]
[BlackElo "2203"]
[Result "1-0"]
[Round "06"]
[TimeControl "180+1"]
[Date "2022.10.26"]
[WhiteClock "0:00:46"]
[BlackClock "0:00:02"]

1. d4 {[%clk 0:03:00]}  Nf6 {[%clk 0:02:59]} 2. c4 {[%clk 0:03:00]}  g6 {[%clk 0:02:55]} 3. Nc3 {[%clk 0:03:00]}  d5 {[%clk 0:02:56]} 4. cxd5 {[%clk 0:03:00]}  Nxd5 {[%clk 0:02:55]} 5. e4 {[%clk 0:03:00]}  Nxc3 {[%clk 0:02:55]} 6. bxc3 {[%clk 0:03:01]}  c5 {[%clk 0:02:54]} 7. Bc4 {[%clk 0:03:01]}  Bg7 {[%clk 0:02:54]} 8. Ne2 {[%clk 0:03:02]}  O-O {[%clk 0:02:54]} 9. Be3 {[%clk 0:03:00]}  Qc7 {[%clk 0:02:49]} 10. Rc1 {[%clk 0:02:59]}  Nc6 {[%clk 0:02:43]} 11. h4 {[%clk 0:02:56]}  Na5 {[%clk 0:02:39]} 12. Bd3 {[%clk 0:02:53]}  b6 {[%clk 0:02:34]} 13. h5 {[%clk 0:02:51]}  e6 {[%clk 0:02:31]} 14. hxg6 {[%clk 0:02:47]}  hxg6 {[%clk 0:02:29]} 15. Qd2 {[%clk 0:02:47]}  f5 {[%clk 0:02:22]} 16. exf5 {[%clk 0:02:27]}  exf5 {[%clk 0:02:13]} 17. Bh6 {[%clk 0:02:08]}  Re8 {[%clk 0:02:05]} 18. Qg5 {[%clk 0:01:48]}  Qf7 {[%clk 0:01:53]} 19. Bxg7 {[%clk 0:01:47]}  Qxg7 {[%clk 0:01:52]} 20. Kf1 {[%clk 0:01:40]}  Be6 {[%clk 0:01:40]} 21. Nf4 {[%clk 0:01:39]}  Bf7 {[%clk 0:01:39]} 22. Rh6 {[%clk 0:01:09]}  c4 {[%clk 0:00:54]} 23. Bc2 {[%clk 0:00:58]}  Nb3 {[%clk 0:00:42]} 24. axb3 {[%clk 0:00:55]}  cxb3 {[%clk 0:00:43]} 25. Bb1 {[%clk 0:00:55]}  b2 {[%clk 0:00:42]} 26. Rd1 {[%clk 0:00:55]}  Re7 {[%clk 0:00:09]} 27. Nxg6 {[%clk 0:00:52]}  Bxg6 {[%clk 0:00:03]} 28. Rxg6 {[%clk 0:00:51]}  Rae8 {[%clk 0:00:03]} 29. Rxg7+ {[%clk 0:00:50]}  Rxg7 {[%clk 0:00:04]} 30. Qxf5 {[%clk 0:00:49]}  a5 {[%clk 0:00:02]} 31. Re1 {[%clk 0:00:46]} 1-0


[Site "https://www.chess.com"]

[Event "Titled Tuesday Blitz October 25 Late 2022"]
[White "Miszler, Levente"]
[Black "Luxama, Jacques Muller"]
[WhiteFideId "763276"]
[BlackFideId "11900113"]
[WhiteElo "2176"]
[BlackElo "1931"]
[Result "1-0"]
[Round "06"]
[TimeControl "180+1"]
[Date "2022.10.26"]
[WhiteClock "0:00:07"]
[BlackClock "0:00:05"]

1. c4 {[%clk 0:03:00]}  Nf6 {[%clk 0:02:58]} 2. Nc3 {[%clk 0:02:52]}  e6 {[%clk 0:02:54]} 3. d4 {[%clk 0:02:49]}  Bb4 {[%clk 0:02:52]} 4. e3 {[%clk 0:02:44]}  O-O {[%clk 0:02:49]} 5. Nf3 {[%clk 0:02:43]}  c5 {[%clk 0:02:47]} 6. a3 {[%clk 0:02:38]}  Bxc3+ {[%clk 0:02:44]} 7. bxc3 {[%clk 0:02:39]}  d5 {[%clk 0:02:43]} 8. Be2 {[%clk 0:02:37]}  Qa5 {[%clk 0:02:40]} 9. Bd2 {[%clk 0:02:28]}  Ne4 {[%clk 0:02:39]} 10. Qc2 {[%clk 0:02:18]}  Nxd2 {[%clk 0:02:35]} 11. Qxd2 {[%clk 0:02:19]}  dxc4 {[%clk 0:02:33]} 12. Bxc4 {[%clk 0:02:17]}  Rd8 {[%clk 0:02:30]} 13. O-O {[%clk 0:02:14]}  Qc7 {[%clk 0:02:29]} 14. Be2 {[%clk 0:02:13]}  b6 {[%clk 0:02:26]} 15. Rab1 {[%clk 0:02:07]}  Bb7 {[%clk 0:02:17]} 16. Qb2 {[%clk 0:02:00]}  Nd7 {[%clk 0:02:15]} 17. Rfd1 {[%clk 0:01:59]}  Rac8 {[%clk 0:02:10]} 18. a4 {[%clk 0:01:49]}  Be4 {[%clk 0:02:03]} 19. Ra1 {[%clk 0:01:47]}  Nf6 {[%clk 0:01:45]} 20. a5 {[%clk 0:01:44]}  Nd5 {[%clk 0:01:41]} 21. axb6 {[%clk 0:01:35]}  axb6 {[%clk 0:01:40]} 22. Ne5 {[%clk 0:01:27]}  cxd4 {[%clk 0:01:38]} 23. cxd4 {[%clk 0:01:27]}  Nc3 {[%clk 0:01:37]} 24. Re1 {[%clk 0:01:22]}  f6 {[%clk 0:01:27]} 25. Nd3 {[%clk 0:00:59]}  Nxe2+ {[%clk 0:01:11]} 26. Qxe2 {[%clk 0:00:58]}  Qb7 {[%clk 0:00:55]} 27. f3 {[%clk 0:00:55]}  Bd5 {[%clk 0:00:51]} 28. Qb2 {[%clk 0:00:48]}  Bc4 {[%clk 0:00:47]} 29. Red1 {[%clk 0:00:42]}  b5 {[%clk 0:00:45]} 30. Rab1 {[%clk 0:00:41]}  Qa7 {[%clk 0:00:38]} 31. Nc5 {[%clk 0:00:39]}  e5 {[%clk 0:00:29]} 32. Ra1 {[%clk 0:00:34]}  Qb6 {[%clk 0:00:25]} 33. Ra6 {[%clk 0:00:27]}  Qb8 {[%clk 0:00:15]} 34. Raa1 {[%clk 0:00:21]}  exd4 {[%clk 0:00:14]} 35. exd4 {[%clk 0:00:20]}  Qf4 {[%clk 0:00:13]} 36. Qf2 {[%clk 0:00:17]}  Rd5 {[%clk 0:00:11]} 37. Rac1 {[%clk 0:00:14]}  Rd6 {[%clk 0:00:07]} 38. Ne4 {[%clk 0:00:12]}  Rd5 {[%clk 0:00:06]} 39. g3 {[%clk 0:00:12]}  Qc7 {[%clk 0:00:05]} 40. Nc3 {[%clk 0:00:11]}  Rd6 {[%clk 0:00:05]} 41. Nxb5 {[%clk 0:00:10]}  Qb6 {[%clk 0:00:04]} 42. Nxd6 {[%clk 0:00:10]}  Qxd6 {[%clk 0:00:05]} 43. Qe3 {[%clk 0:00:08]}  Qd5 {[%clk 0:00:06]} 44. Qe4 {[%clk 0:00:07]}  Qb5 {[%clk 0:00:05]} 45. d5 {[%clk 0:00:07]} 1-0


[Site "https://www.chess.com"]

[Event "Titled Tuesday Blitz October 25 Late 2022"]
[White "Nouri, Alekhine"]
[Black "Roque Sola, Gisela"]
[WhiteFideId "5216184"]
[BlackFideId "5120241"]
[WhiteElo "2151"]
[BlackElo "1961"]
[Result "1-0"]
[Round "06"]
[TimeControl "180+1"]
[Date "2022.10.26"]
[WhiteClock "0:02:52"]
[BlackClock "0:02:20"]

1. e4 {[%clk 0:03:00]}  e6 {[%clk 0:02:59]} 2. d4 {[%clk 0:03:00]}  d5 {[%clk 0:02:59]} 3. Bd3 {[%clk 0:03:01]}  dxe4 {[%clk 0:02:58]} 4. Bxe4 {[%clk 0:03:02]}  Nf6 {[%clk 0:02:59]} 5. Bf3 {[%clk 0:03:02]}  c5 {[%clk 0:02:59]} 6. Ne2 {[%clk 0:03:00]}  Nc6 {[%clk 0:02:59]} 7. Be3 {[%clk 0:03:00]}  cxd4 {[%clk 0:02:59]} 8. Nxd4 {[%clk 0:03:00]}  Ne5 {[%clk 0:02:59]} 9. Nc3 {[%clk 0:02:59]}  a6 {[%clk 0:02:42]} 10. Qe2 {[%clk 0:02:59]}  Nxf3+ {[%clk 0:02:42]} 11. Qxf3 {[%clk 0:02:59]}  Be7 {[%clk 0:02:39]} 12. O-O-O {[%clk 0:02:57]}  O-O {[%clk 0:02:38]} 13. Nf5 {[%clk 0:02:56]}  Qe8 {[%clk 0:02:34]} 14. Nxe7+ {[%clk 0:02:56]}  Qxe7 {[%clk 0:02:35]} 15. Bg5 {[%clk 0:02:56]}  Ra7 {[%clk 0:02:20]} 16. Ne4 {[%clk 0:02:52]} 1-0


[Site "https://www.chess.com"]

[Event "Titled Tuesday Blitz October 25 Late 2022"]
[White "Nozdrachev, Leonid"]
[Black "Yanayt, Eugene"]
[WhiteFideId "24113433"]
[BlackFideId "2020165"]
[WhiteElo "2249"]
[BlackElo "2046"]
[Result "1-0"]
[Round "06"]
[TimeControl "180+1"]
[Date "2022.10.26"]
[WhiteClock "0:00:18"]
[BlackClock "0:00:16"]

1. a4 {[%clk 0:02:17]}  e5 {[%clk 0:02:58]} 2. g3 {[%clk 0:02:14]}  d5 {[%clk 0:02:55]} 3. d3 {[%clk 0:02:14]}  h5 {[%clk 0:02:53]} 4. h3 {[%clk 0:02:13]}  h4 {[%clk 0:02:49]} 5. g4 {[%clk 0:02:13]}  Be7 {[%clk 0:02:45]} 6. Bg2 {[%clk 0:02:13]}  Be6 {[%clk 0:02:44]} 7. a5 {[%clk 0:02:10]}  c6 {[%clk 0:02:41]} 8. Nd2 {[%clk 0:02:08]}  Bb4 {[%clk 0:02:39]} 9. Nf3 {[%clk 0:01:57]}  f6 {[%clk 0:02:27]} 10. O-O {[%clk 0:01:48]}  Bxa5 {[%clk 0:02:26]} 11. c4 {[%clk 0:01:48]}  Ne7 {[%clk 0:02:22]} 12. cxd5 {[%clk 0:01:47]}  Nxd5 {[%clk 0:02:19]} 13. Nc4 {[%clk 0:01:45]}  Bc7 {[%clk 0:02:16]} 14. Nfd2 {[%clk 0:01:33]}  Nf4 {[%clk 0:02:12]} 15. Ne4 {[%clk 0:01:32]}  Bxc4 {[%clk 0:01:57]} 16. Bxf4 {[%clk 0:01:30]}  Bxd3 {[%clk 0:01:36]} 17. Nc5 {[%clk 0:01:24]}  Ba6 {[%clk 0:01:25]} 18. Qc2 {[%clk 0:01:01]}  Qe7 {[%clk 0:00:54]} 19. Rxa6 {[%clk 0:00:49]}  bxa6 {[%clk 0:00:50]} 20. Be3 {[%clk 0:00:45]}  O-O {[%clk 0:00:40]} 21. Qb3+ {[%clk 0:00:42]}  Qf7 {[%clk 0:00:38]} 22. Qb7 {[%clk 0:00:42]}  Nd7 {[%clk 0:00:28]} 23. Qxc7 {[%clk 0:00:40]}  Nxc5 {[%clk 0:00:28]} 24. Qxf7+ {[%clk 0:00:39]}  Rxf7 {[%clk 0:00:27]} 25. Bxc5 {[%clk 0:00:40]}  Rb8 {[%clk 0:00:26]} 26. b4 {[%clk 0:00:39]}  a5 {[%clk 0:00:26]} 27. bxa5 {[%clk 0:00:39]}  Rb5 {[%clk 0:00:26]} 28. Be3 {[%clk 0:00:36]}  Rxa5 {[%clk 0:00:26]} 29. Bxc6 {[%clk 0:00:36]}  Rc7 {[%clk 0:00:25]} 30. Be4 {[%clk 0:00:36]}  Kf8 {[%clk 0:00:24]} 31. Rb1 {[%clk 0:00:34]}  Ra2 {[%clk 0:00:22]} 32. Kf1 {[%clk 0:00:32]}  a5 {[%clk 0:00:21]} 33. Rb8+ {[%clk 0:00:30]}  Ke7 {[%clk 0:00:21]} 34. Rg8 {[%clk 0:00:29]}  Kd6 {[%clk 0:00:21]} 35. Rd8+ {[%clk 0:00:27]}  Rd7 {[%clk 0:00:21]} 36. Ra8 {[%clk 0:00:26]}  a4 {[%clk 0:00:20]} 37. Ra6+ {[%clk 0:00:26]}  Ke7 {[%clk 0:00:19]} 38. Bc5+ {[%clk 0:00:24]}  Kf7 {[%clk 0:00:19]} 39. Bf5 {[%clk 0:00:23]}  Rd1+ {[%clk 0:00:18]} 40. Kg2 {[%clk 0:00:23]}  Rad2 {[%clk 0:00:17]} 41. Rxa4 {[%clk 0:00:19]}  Rxe2 {[%clk 0:00:16]} 42. Ra8 {[%clk 0:00:19]}  Red2 {[%clk 0:00:16]} 43. Rf8# {[%clk 0:00:18]} 1-0


[Site "https://www.chess.com"]

[Event "Titled Tuesday Blitz October 25 Late 2022"]
[White "Osmak, Yuliia"]
[Black "Prydun, Andriy"]
[WhiteFideId "14101602"]
[BlackFideId "14145898"]
[WhiteElo "2328"]
[BlackElo "2163"]
[Result "0-1"]
[Round "06"]
[TimeControl "180+1"]
[Date "2022.10.26"]
[WhiteClock "0:00:02"]
[BlackClock "0:00:05"]

1. d4 {[%clk 0:03:00]}  Nf6 {[%clk 0:02:53]} 2. c4 {[%clk 0:03:00]}  c5 {[%clk 0:02:54]} 3. d5 {[%clk 0:02:59]}  e5 {[%clk 0:02:54]} 4. Nc3 {[%clk 0:02:58]}  d6 {[%clk 0:02:55]} 5. e4 {[%clk 0:02:58]}  Nbd7 {[%clk 0:02:55]} 6. Nf3 {[%clk 0:02:56]}  Be7 {[%clk 0:02:51]} 7. Be2 {[%clk 0:02:56]}  Nf8 {[%clk 0:02:47]} 8. O-O {[%clk 0:02:54]}  Ng6 {[%clk 0:02:47]} 9. Ne1 {[%clk 0:02:52]}  a6 {[%clk 0:02:13]} 10. a3 {[%clk 0:02:33]}  O-O {[%clk 0:02:00]} 11. b4 {[%clk 0:02:32]}  Nd7 {[%clk 0:01:53]} 12. Rb1 {[%clk 0:02:24]}  Bg5 {[%clk 0:01:51]} 13. Nd3 {[%clk 0:02:19]}  h6 {[%clk 0:01:46]} 14. bxc5 {[%clk 0:02:18]}  dxc5 {[%clk 0:01:45]} 15. g3 {[%clk 0:01:56]}  Rb8 {[%clk 0:01:30]} 16. f4 {[%clk 0:01:54]}  exf4 {[%clk 0:01:30]} 17. gxf4 {[%clk 0:01:55]}  Be7 {[%clk 0:01:29]} 18. e5 {[%clk 0:01:54]}  b5 {[%clk 0:01:21]} 19. d6 {[%clk 0:01:49]}  Bh4 {[%clk 0:01:19]} 20. Nd5 {[%clk 0:01:38]}  bxc4 {[%clk 0:01:12]} 21. Rxb8 {[%clk 0:01:39]}  cxd3 {[%clk 0:01:12]} 22. Rxc8 {[%clk 0:01:15]}  Qxc8 {[%clk 0:00:58]} 23. Qxd3 {[%clk 0:01:13]}  Qb7 {[%clk 0:00:43]} 24. Bf3 {[%clk 0:01:10]}  Qb5 {[%clk 0:00:41]} 25. Be4 {[%clk 0:00:48]}  c4 {[%clk 0:00:38]} 26. Qh3 {[%clk 0:00:47]}  Bd8 {[%clk 0:00:27]} 27. e6 {[%clk 0:00:28]}  Nf6 {[%clk 0:00:16]} 28. e7 {[%clk 0:00:18]}  Nxe4 {[%clk 0:00:06]} 29. exf8=Q+ {[%clk 0:00:18]}  Nxf8 {[%clk 0:00:06]} 30. Qf5 {[%clk 0:00:15]}  Nxd6 {[%clk 0:00:05]} 31. Qe5 {[%clk 0:00:12]}  Nb7 {[%clk 0:00:03]} 32. Bb2 {[%clk 0:00:12]}  f6 {[%clk 0:00:02]} 33. Qd4 {[%clk 0:00:10]}  Qc5 {[%clk 0:00:02]} 34. Qxc5 {[%clk 0:00:10]}  Nxc5 {[%clk 0:00:03]} 35. Bd4 {[%clk 0:00:08]}  Nd3 {[%clk 0:00:03]} 36. f5 {[%clk 0:00:07]}  Nd7 {[%clk 0:00:03]} 37. Ne3 {[%clk 0:00:07]}  N7e5 {[%clk 0:00:03]} 38. Bxe5 {[%clk 0:00:07]}  Nxe5 {[%clk 0:00:04]} 39. Rc1 {[%clk 0:00:07]}  Bb6 {[%clk 0:00:05]} 40. Kf2 {[%clk 0:00:06]}  Nd3+ {[%clk 0:00:04]} 41. Kf3 {[%clk 0:00:05]}  Nxc1 {[%clk 0:00:05]} 42. Nxc4 {[%clk 0:00:05]}  Bc5 {[%clk 0:00:06]} 43. a4 {[%clk 0:00:05]}  Nb3 {[%clk 0:00:06]} 44. Ke4 {[%clk 0:00:04]}  Kh7 {[%clk 0:00:04]} 45. Kd5 {[%clk 0:00:05]}  Bg1 {[%clk 0:00:04]} 46. h3 {[%clk 0:00:04]}  Nc5 {[%clk 0:00:04]} 47. Kc6 {[%clk 0:00:04]}  Nxa4 {[%clk 0:00:04]} 48. Kb7 {[%clk 0:00:02]}  Nc3 {[%clk 0:00:05]} 49. Kxa6 {[%clk 0:00:02]}  Ne2 {[%clk 0:00:05]} 50. Kb5 {[%clk 0:00:02]}  Nd4+ {[%clk 0:00:05]} 0-1


[Site "https://www.chess.com"]

[Event "Titled Tuesday Blitz October 25 Late 2022"]
[White "Papp, Levente"]
[Black "Moreno Perez, Tobias Sebastian"]
[WhiteFideId "751243"]
[BlackFideId "186716"]
[WhiteElo "2380"]
[BlackElo "2481"]
[Result "0-1"]
[Round "06"]
[TimeControl "180+1"]
[Date "2022.10.26"]
[WhiteClock "0:00:01"]
[BlackClock "0:00:41"]

1. Nc3 {[%clk 0:02:58]}  d5 {[%clk 0:02:59]} 2. d4 {[%clk 0:02:58]}  Nf6 {[%clk 0:02:58]} 3. Bf4 {[%clk 0:02:57]}  c5 {[%clk 0:02:58]} 4. e3 {[%clk 0:02:56]}  cxd4 {[%clk 0:02:57]} 5. exd4 {[%clk 0:02:56]}  Bg4 {[%clk 0:02:57]} 6. f3 {[%clk 0:02:53]}  Bd7 {[%clk 0:02:56]} 7. Qd2 {[%clk 0:02:50]}  Nc6 {[%clk 0:02:54]} 8. h4 {[%clk 0:02:16]}  e6 {[%clk 0:02:49]} 9. h5 {[%clk 0:02:15]}  h6 {[%clk 0:02:43]} 10. Nge2 {[%clk 0:02:06]}  Rc8 {[%clk 0:02:42]} 11. a3 {[%clk 0:01:44]}  Na5 {[%clk 0:02:39]} 12. b3 {[%clk 0:01:45]}  Qb6 {[%clk 0:02:23]} 13. g4 {[%clk 0:01:33]}  Bd6 {[%clk 0:02:13]} 14. Bxd6 {[%clk 0:01:24]}  Qxd6 {[%clk 0:02:14]} 15. Kf2 {[%clk 0:01:23]}  a6 {[%clk 0:02:10]} 16. Nd1 {[%clk 0:01:00]}  Nc6 {[%clk 0:01:54]} 17. Ne3 {[%clk 0:00:58]}  O-O {[%clk 0:01:43]} 18. Re1 {[%clk 0:00:24]}  Qxa3 {[%clk 0:01:35]} 19. g5 {[%clk 0:00:19]}  hxg5 {[%clk 0:01:32]} 20. h6 {[%clk 0:00:19]}  g6 {[%clk 0:01:09]} 21. h7+ {[%clk 0:00:15]}  Kh8 {[%clk 0:01:08]} 22. Ng2 {[%clk 0:00:07]}  g4 {[%clk 0:00:58]} 23. Qg5 {[%clk 0:00:05]}  Qe7 {[%clk 0:00:57]} 24. Ke3 {[%clk 0:00:02]}  gxf3 {[%clk 0:00:46]} 25. Ngf4 {[%clk 0:00:01]}  e5 {[%clk 0:00:43]} 26. Kf2 {[%clk 0:00:01]}  Ne4+ {[%clk 0:00:41]} 0-1


[Site "https://www.chess.com"]